Cogmind - Beta 13 @@@ ROGUE MODE // 2024.07.27 @ 21:32:10 // Halloween2019/Abominations Player: jimmyl Result: Destroyed by Lesser Abomination with Etherial Claws Performance ------------- Evolutions (2) 1000 Regions Visited (3) 600 Robots Destroyed (33) 165 Value Destroyed (1664) 1664 Prototype IDs (2) 40 Alien Tech Used (0) 0 Bonus (0) 0 TOTAL SCORE: 3469 Bonus ------- None Cogmind --------- Core Integrity 0/550 Matter 268/300 Energy 36/100 System Corruption 14% Temperature Cool (0) Movement Treading (160) Location -8/Materials Parts ------- > --- POWER (1) -------- (None) > --- PROPULSION (2) --- Light Treads > --- UTILITY (4) ------ (None) > --- WEAPON (4) ------- Advanced Assault Cannon > --- INVENTORY (5) ---- Advanced Heat Sink Weapon Cycler Particle Gun Peak State ------------ > --- POWER ------------ Nuclear Core > --- PROPULSION ------- Light Treads Light Treads > --- UTILITY ---------- Small Storage Unit Improved Targeting Computer Weapon Cycler Light Armor Plating > --- WEAPON ----------- Pulse Rifle Heavy Assault Cannon Rocket Launcher > --- INVENTORY -------- Cooled Ion Engine Cooled Ion Engine Light Treads Compact Wheel Compact Wheel Weapon Cycler Arc Projector [Rating: 25] Favorites ----------- Power Ion Engine Engine Ion Engine Power Core Nuclear Core Propulsion Light Treads Treads Light Treads Leg Aluminum Leg Wheel Compact Wheel Hover Unit Hover Unit Utility Small Storage Unit Device Weapon Cycler Storage Small Storage Unit Processor Improved Targeting Computer Protection Hardened Light Armor Plating Weapon Medium Laser Energy Gun Medium Laser Energy Cannon Heavy Particle Cannon Ballistic Gun Assault Rifle Ballistic Cannon Heavy Assault Cannon Launcher Rocket Launcher Build | -11 -10 -9 -8 ------- Run | Yrd Mat Mat Mat Slots Evolved 4 | . . 2 2 Power . | . . . . Propulsion . | . . . . Utility 2 | . . . 2 Weapon 2 | . . 2 . Parts Attached 30 | . 2 8 20 Power 2 | . . . 2 Engine 1 | . . . 1 Core 1 | . . . 1 Reactor . | . . . . Propulsion 11 | . 2 3 6 Treads 6 | . . 3 3 Leg . | . . . . Wheel 3 | . . . 3 Hover 2 | . 2 . . Flight . | . . . . Utility 4 | . . 1 3 Device 1 | . . . 1 Storage . | . . . . Processor 1 | . . . 1 Hackware . | . . . . Protection 2 | . . 1 1 Artifact . | . . . . Weapon 13 | . . 4 9 Energy Gun 7 | . . 3 4 Energy Cannon 2 | . . . 2 Ballistic Gun 1 | . . 1 . Ballistic Cannon 2 | . . . 2 Launcher 1 | . . . 1 Special Weapon . | . . . . Impact Weapon . | . . . . Slashing Weapon . | . . . . Piercing Weapon . | . . . . Special Melee Weapon . | . . . . Unidentified Prototypes 2 | . . 1 1 Corrupted Parts 1 | . . . 1 System Corruption 1 | . . . 1 Parts Lost 21 | . . . 21 Power 3 | . . . 3 Propulsion 7 | . . . 7 Utility 3 | . . . 3 Weapon 8 | . . . 8 Highest Loss Streak 12 | . . . 12 To Critical Strikes . | . . . . Average Slot Usage (%) 78 | . 83 93 68 Engine 6 | . 14 11 . Core 3 | . . . 6 Treads 13 | . . 22 14 Leg 2 | . 13 . . Hover 3 | . 14 . . Device 2 | . . . 4 Storage 9 | . 14 11 7 Processor 3 | . . . 7 Protection 6 | . . 10 7 Energy Gun 15 | . 14 27 10 Ballistic Gun 6 | . 13 11 1 Ballistic Cannon 2 | . . . 5 Launcher 1 | . . . 2 Naked Turns 7 | . . . 7 Heaviest Build 35 | 13 13 24 35 Greatest Support 40 | 20 20 40 40 Greatest Overweight (x) 4 | . 4 1 3 Average Overweight (x) . | . . . . Largest Inventory Capacity 8 | 8 8 8 8 Average Capacity 7 | 8 8 8 7 Most Carried 8 | 6 8 8 8 Average Carried 6 | 6 6 5 6 Final Capacity 8 | 8 8 8 5 Final Carried 8 | 6 7 8 3 Class Distribution -------------------- 35% | Gunner 34% | Tank 30% | Mutant Dominant Class ---------------- Mutant | -10/Materials Tank | -9/Materials Gunner | -8/Materials Resources | -11 -10 -9 -8 ----------- Run | Yrd Mat Mat Mat Matter Collected 1045 | 200 69 129 647 Remotely . | . . . . Salvage Created 1375 | . 274 216 885 Parts 67 | . 21 11 35 Haulers Intercepted 1 | . . 1 . Recyclers Shooed . | . . . . Parts Field Recycled . | . . . . Retrieved Matter . | . . . . Parts Self-Destructed . | . . . . Prevented . | . . . . Kills | -11 -10 -9 -8 ------- Run | Yrd Mat Mat Mat Combat Hostiles Destroyed 30 | . 6 5 19 Guns 16 | . 6 5 5 Cannons 13 | . . . 13 AOE 1 | . . . 1 Classes Destroyed 7 | . 2 4 1 Hauler 1 | . . 1 . Swarmer 2 | . . 2 . Grunt 9 | . 2 1 6 Brawler 2 | . . . 2 Sentry 2 | . . 1 1 Abomination 15 | . 4 1 10 Anomaly 2 | . . 1 1 Best Kill Streak 5 | . 2 2 5 Combat Bots Only 4 | . 2 2 4 Max Kills in Single Turn 1 | . 1 1 1 Gunslinging . | . . . . Exploded 1 | . . . 1 Melee . | . . . . Uniques/NPCs Destroyed . | . . . . Combat | -11 -10 -9 -8 -------- Run | Yrd Mat Mat Mat Hostile Shots Fired 319 | . 62 23 234 Missed 86 | . 21 3 62 Damage Taken 3342 | . 567 230 2545 Core 869 | . 232 32 605 Absorbed by Shields . | . . . . Core Remaining (%) 66 | 100 7 92 . Volleys Fired 145 | . 42 18 85 Largest 4 | . 2 4 4 Hottest 232 | . 70 176 232 Shots Fired 261 | . 81 56 124 Gun 191 | . 81 56 54 Cannon 63 | . . . 63 Launcher 7 | . . . 7 Special . | . . . . Kinetic 116 | . 40 18 58 Thermal 135 | . 41 38 56 Explosive 7 | . . . 7 Electromagnetic 3 | . . . 3 Robot Hit Streak 25 | . 20 10 25 Robot Miss Streak 11 | . 11 6 6 Penetration Max . | . . . . Secondary Targets 2 | . 2 . . Max Gunslinging Chain 1 | . 1 . . Shots Hit Robots 175 | . 54 34 87 Core Hits 67 | . 16 10 41 Critical Kills . | . . . . Critical Parts Destroyed 1 | . . 1 . Critical Strikes 14 | . 5 3 6 Burn 9 | . 4 2 3 Destroy 2 | . 1 1 . Blast 3 | . . . 3 Melee Attacks . | . . . . Impact . | . . . . Slashing . | . . . . Piercing . | . . . . Sneak Attacks . | . . . . Combat Hostiles . | . . . . Follow-up Attacks . | . . . . Damage Inflicted 4059 | . 651 457 2951 Guns 1818 | . 651 456 711 Cannons 1858 | . . . 1858 Explosions 382 | . . . 382 Melee . | . . . . Ramming 1 | . . 1 . Kinetic 1970 | . 194 147 1629 Thermal 1700 | . 457 309 934 Explosive 382 | . . . 382 Electromagnetic 6 | . . . 6 Impact . | . . . . Slashing . | . . . . Piercing . | . . . . Highest Corruption 14 | . 6 3 14 Average Corruption 6 | . 5 3 7 Corruption Purged . | . . . . Corruption Blocked . | . . . . Effects 28 | . 4 3 21 Message Errors 6 | . 1 1 4 Matter Fused 6 | . 1 . 5 Heat Flow Errors 2 | . . 1 1 Energy Discharges 3 | . . . 3 Parts Rejected 1 | . . . 1 Parts Fused 1 | . 1 . . Data Loss (minor) 2 | . . . 2 Data Loss (major) 1 | . 1 . . Misfires 3 | . . . 3 Alerts 1 | . . 1 . Weapon Failures 2 | . . . 2 Overload Shots . | . . . . Overflow Damage 110 | . . . 110 Projectiles 90 | . . . 90 Explosions 20 | . . . 20 Melee . | . . . . Knockbacks 6 | . . . 6 Impact . | . . . . Kinetic 6 | . . . 6 Secondary . | . . . . Self-Inflicted Damage 8 | . . . 8 Shots 1 | . . . 1 Rammed 1 | . . 1 . Targets Rammed 1 | . . 1 . Kicked . | . . . . Crushed . | . . . . Highest Temperature 496 | . 300 343 496 Average Temperature 106 | . 87 113 112 Received Heat Transfer 1080 | . 114 87 879 Effects 10 | . . 3 7 Shutdowns 3 | . . 1 2 Energy Bleed 4 | . . 2 2 Matter Decay 1 | . . . 1 Damage (major) 2 | . . . 2 Siege Activations . | . . . . Robots Corrupted . | . . . . Combat Hostiles . | . . . . Parts Fried . | . . . . Impact Corruptions . | . . . . Robots Melted . | . . . . Combat Hostiles . | . . . . Parts Melted 2 | . . 2 . Heat Transferred 1902 | . 687 747 468 Parts Sabotaged . | . . . . Parts Stolen . | . . . . Parts Stripped . | . . . . Power Chain Reactions . | . . . . Alert | -11 -10 -9 -8 ------- Run | Yrd Mat Mat Mat Peak Influence 240 | . 60 184 240 Initial 25 | . . 25 . Average 75 | . 34 98 80 Maximum Alert Level 1 | . . . 1 Low Security (%) 95 | 100 100 100 90 Level 1 4 | . . . 9 Level 2 . | . . . . Level 3 . | . . . . Level 4 . | . . . . Level 5 . | . . . . High Security . | . . . . Max Security . | . . . . Squads Dispatched 27 | . 4 6 17 Investigation 5 | . 2 1 2 Extermination . | . . . . Reinforcement 3 | . . 2 1 Assault 16 | . 2 3 11 Garrison 3 | . . . 3 Intercept . | . . . . Searches Triggered . | . . . . Construction Impeded . | . . . . Haulers Reinforced . | . . . . Active Scanning Responses . | . . . . Cargo Convoy Interrupts . | . . . . Stealth | -11 -10 -9 -8 --------- Run | Yrd Mat Mat Mat Distress Signals 23 | . 1 6 16 Communications Jammed . | . . . . Distress Signals . | . . . . Times Spotted 55 | . 10 10 35 Peak Tracking Total 13 | . 4 6 13 Tactical Retreats 2 | . . 1 1 Traps | -11 -10 -9 -8 ------- Run | Yrd Mat Mat Mat Traps Triggered . | . . . . Indirectly . | . . . . Trap Hack Attempts . | . . . . Triggered . | . . . . Disarmed . | . . . . Reprogrammed . | . . . . Reused . | . . . . Traps Extracted . | . . . . Installed . | . . . . Triggered 1 | . . . 1 Machines | -11 -10 -9 -8 ---------- Run | Yrd Mat Mat Mat Machines Disabled 1 | . . . 1 Max in Single Turn 1 | . . . 1 Machines Repaired . | . . . . Machines Dismantled . | . . . . Machines Sabotaged . | . . . . Overloaded Fab Kills . | . . . . Hacking | -11 -10 -9 -8 --------- Run | Yrd Mat Mat Mat Machines Accessed 4 | . 2 . 2 Terminals 2 | . 2 . . Fabricators . | . . . . Repair Stations 1 | . . . 1 Recycling Units . | . . . . Scanalyzers . | . . . . Garrison Access 1 | . . . 1 Total Hacks 8 | . 3 . 5 Successful 5 | . 3 . 2 Failed 3 | . . . 3 Catastrophic 2 | . . . 2 Database Lockouts . | . . . . Manual . | . . . . Terminals 3 | . 3 . . Fabricators . | . . . . Repair Stations 2 | . . . 2 Recycling Units . | . . . . Scanalyzers . | . . . . Garrison Access 3 | . . . 3 Terminal Hacks 3 | . 3 . . Robot Analysis 1 | . 1 . . Emergency Access Points 1 | . 1 . . Terminal Index 1 | . 1 . . Fabricator Hacks . | . . . . Repair Station Hacks 1 | . . . 1 Refit 1 | . . . 1 Recycling Unit Hacks . | . . . . Scanalyzer . | . . . . Garrison Access Hacks 1 | . . . 1 Unlock Access 1 | . . . 1 Unauthorized Hacks . | . . . . Terminals . | . . . . Fabricators . | . . . . Repair Stations . | . . . . Recycling Units . | . . . . Scanalyzers . | . . . . Garrison Access . | . . . . Data Cores Recovered . | . . . . Used . | . . . . Hacking Detections 2 | . 1 . 1 Full Trace Events . | . . . . Feedback Events . | . . . . Feedback Blocked . | . . . . Robot Schematics Acquired . | . . . . Robots Built . | . . . . Authchips . | . . . . Time . | . . . . Total Robot Build Rating . | . . . . Part Schematics Acquired . | . . . . Parts Built . | . . . . Authchips . | . . . . Time . | . . . . Total Part Build Rating . | . . . . Parts Repaired . | . . . . Time . | . . . . Parts Recycled . | . . . . Recycled Matter . | . . . . Retrieved Matter . | . . . . Retrieved Components . | . . . . Parts Scanalyzed . | . . . . Part Schematics Acquired . | . . . . Parts Damaged . | . . . . Bothacking | -11 -10 -9 -8 ------------ Run | Yrd Mat Mat Mat Used RIF Installer . | . . . . Robots Hacked . | . . . . Non-combat . | . . . . Combat . | . . . . Robot Hacks Applied . | . . . . Relay Couplers Released . | . . . . Fabnet Peak Effective % . | . . . . Robots Rewired . | . . . . Allies Hacked . | . . . . Hacks Repelled . | . . . . Allies | -11 -10 -9 -8 -------- Run | Yrd Mat Mat Mat Total Allies . | . . . . Largest Group . | . . . . Highest-Rated Group . | . . . . Highest-Rated Ally . | . . . . Total Orders . | . . . . Ally Attacks . | . . . . Total Damage . | . . . . Kills . | . . . . Allies Corrupted . | . . . . Allies Melted . | . . . . Intel | -11 -10 -9 -8 ------- Run | Yrd Mat Mat Mat Robot Analysis Total 1 | . 1 . . Derelict Logs Recovered . | . . . . Drone Launches . | . . . . Drone Recoveries . | . . . . Exploration | -11 -10 -9 -8 ------------- Run | Yrd Mat Mat Mat Turns Passed 1612 | 2 338 459 813 Spaces Moved 777 | 2 172 228 375 Core 86 | . 2 . 84 Treads 483 | . . 221 262 Legs 108 | 2 106 . . Wheels 29 | . . . 29 Hover 71 | . 64 7 . Flight . | . . . . Fastest Speed 50 | 120 56 56 50 Average Speed 134 | 120 110 157 131 Slowest Speed 250 | 120 250 240 200 Overloaded Moves . | . . . . Propulsion Burnouts . | . . . . Robots Hopped . | . . . . Cave-ins Triggered . | . . . . Exploration Rate (%) 23 | 2 21 22 47 Regions Visited 3 Branch Regions . Pre-discovered Areas . | . . . . Known Exits Taken . | . . . . Unknown Exits Taken 3 | 1 1 1 . Scrap Searched . | . . . . Spaces Dug . | . . . . Terrain Destroyed 40 | . . . 40 Melee . | . . . . Projectile 27 | . . . 27 AOE 13 | . . . 13 Terrain Rammed . | . . . . Walls Destroyed . | . . . . Machines Disabled . | . . . . Actions | -11 -10 -9 -8 --------- Run | Yrd Mat Mat Mat Total 1063 | 1 228 288 546 Wait 75 | . 8 21 46 Move 774 | 1 171 227 375 Hop . | . . . . Pick Up 22 | . 2 9 11 Fast Attach 7 | . 1 . 6 Attach 22 | . 1 8 13 Detach . | . . . . Swap 1 | . . . 1 Drop 16 | . 3 4 9 Fire 145 | . 42 18 85 Melee . | . . . . Ram . | . . . . Kick . | . . . . Crush 1 | . . 1 . Escape Stasis . | . . . . Rewire . | . . . . Trap . | . . . . Miscellaneous . | . . . . Route ------- -11/Scrapyard -10/Materials -9/Materials -8/Materials (discovered 1 exit: [*Fac]) History --------- Turn | Location | Event 1 | -11/Scrapyard | Discovered new exit (range 1) 3 | -11/Scrapyard | Entered Materials 310 | -10/Materials | Build established: Mutant 319 | -10/Materials | Core integrity fell below 50% 323 | -10/Materials | Core integrity fell below 20% 335 | -10/Materials | Discovered new exit (range 8) 341 | -10/Materials | Entered another Materials area 341 | -9/Materials | Evolved 2 slots: Weapon x2 651 | -9/Materials | Build established: Tank 792 | -9/Materials | Discovered new exit (range 5) 800 | -9/Materials | Entered another Materials area 800 | -8/Materials | Evolved 2 slots: Utility x2 1028 | -8/Materials | Lost 4 parts (1n1u2w) 1193 | -8/Materials | Garrison activated, responded to threat 1207 | -8/Materials | Build established: Gunner 1296 | -8/Materials | Discovered new exit (range 8) 1325 | -8/Materials | Identified exit to Garrison 1424 | -8/Materials | System corruption reached 10% 1484 | -8/Materials | Core integrity fell below 50% 1498 | -8/Materials | Discovered new exit (range 8) 1530 | -8/Materials | Lost 12 parts (2p5n2u3w) 1589 | -8/Materials | Core integrity fell below 20% 1613 | -8/Materials | Destroyed by Lesser Abomination with Etherial Claws Last Messages --------------- 01597_ Door malfunctions. 01598_ Minor Abomination spits out Med. Storage Unit. 01598_ Minor Abomination absorbs Lrg. Storage Unit. 01598_ Corrupted Transport Network Coupler blinks away. 01599_ 45 Matter blinks away. 01600_ Hvy. Particle Cannon destroyed. 01601_ Lesser Abomination spits out Wheel. 01601_ Lesser Abomination absorbs Corrupted Arm. Wheel. 01603_ Acquired 12 matter. 01605_ Acquired Corrupted Adv. Assault Cannon. 01606_ IO6XQSBQXUVCO>MD,=>NQLMXWNHY 01606_ Integrated Corrupted Adv. Assault Cannon (+1). 01606_ Complication: FCS attempts to trigger Adv. Assault Cannon. 01606_ Complication: Adv. Assault Cannon misfires. 01613_ Critical hit (Intensify). Map ----- +----------------------------------------------------+ | | | | | | | | | ?????????????????????????????????????????????????? | | ###?##??##?##??#?????????????????????????????????? | | # ## ### ## ## ##????????????????????????????????? | | % % #???????????????????????????????? | | """"""""""""""""""???????????????????????????????? | | % "??????????????????????????????? | | % ""%"# ??????? %?????????????????????? | | """ % " ###%##????? %##?#?????????????????? | | Y" " # % %#????% ????????????????? | | !" % %""%""%" # ????% % ?????????????? | | % " " " # %??? " %?????????????? | | " # " " # %??? T ?????????????? | | """"" ### " " " % ""??? % n #??????????????? | | #"""#/##""" """"""""""### #??????? %?????? | | % # ] "" % % " ## % / #???## " ????? | | <%" #" """""""" " ## % #???? " ????? | | " #% #" " " " " ## ?#####%" ????? | | % + %" "%#% " ###+#### # % " ???? | | %# "R" #"%" # ! = # """ " " ""#???? | | %#% """ ## # # !!A # """ " " " #???? | | ########" + " = A """ + % " " #???? | | " ?????#### %# %#@%% # % " " ###?? | | %#?????????? # # % n # %" " # ### | | ???????????? #% #########%#""" """ """"""# | | ?????????????? #""""""#???????# " % " | | ???????????????#"#% " #???????# ## " "% | | ??????????????? # %" #???????# #?# " " | | ??????????####"""" % " #???????#%#?#####" " | | ??????????#% % " " ##???#+## #?????## " | | ??????????#[ " " ###?# %% #??????# " % | | ??????????# """ " " " #??????# """"""# | | ??????????# """ " """""""" % ######## ""$ ## | | ??????????# """%" % % !% #? | | ??????????# % % #########"" #? | | ??????????#####""" #%% # "" ##? | | ??????????????#### + % #### #?? | | ????????????######+#####""""""""# # ???# #?? | | ????????????# /%%% %# % % # #"######???#%#?? | | ????????????# %% # ###### # # #????????# #?? | | ????????????#% % "T" # #????? # #%#????????# #?? | | ????????????# %%%% ###?????? #%# #????????? #?? | | ????????????###########???????? " # #????????? ??? | | ????????????????????????????????" # #???????? ??? | | ????????????????????????????????" #"""???????????? | | ????????????????????????????????? " ??????????? | | ????????????????????????????????? ????????????? | +----------------------------------------------------+ Best States ------------- Heat Dissipation 31 Energy Generation 14 Energy Capacity 250 Matter Stores 300 Matter Capacity 300 Sight Range 16 Terrain Scan Density 10 Armor Coverage 150 Weapon Cycling 15 Evasion (%) 55 Targeting Accuracy 6 Recoil Reduction 2 Item Schematics ----------------- None Robot Schematics ------------------ None Fabricated ------------ Nothing Alien Tech Used ----------------- None Achievements -------------- None Challenges ------------ None Game ------ Seed RagnarokSurveybotDiverter Manual? 0 Play Time 00:17:11 Cumulative 76.5 hours Start 2024.07.27 @ 19:39:22 End 2024.07.27 @ 21:32:10 Sessions 3 Manual Loads 0 Difficulty Rogue Special Mode Halloween2019/Abominations Game No. 130 Rogue 130 Adventurer 0 Explorer 0 Win Type - Total 0 Types 0/0/0/0/0/0/0/0/0 Lore% 50 Gallery% 59 Achievement% 43 Wizard Run 0 Options --------- Layout 1 ASCII 0 Keyboard 0 Movement Mouse Keybinds 0 Fullscreen 2 Font 20/SmallcapsGlow Map View 54x42 Zoom Use 0% Tactical HUD 1 Map Filters NONE Filters NONE Steam 0 RUN: 8df2ee4d-d7e2-4343-94dc-1c5f2c4847e9